[Event "Live Chess"]
[Site "Chess.com"]
[Date "2023.05.21"]
[Round "-"]
[White "LiamClery2020"]
[Black "Geomorph"]
[Result "1-0"]
[WhiteElo "1966"]
[BlackElo "1277"]
[TimeControl "300"]
[EndTime "6:11:07 PDT"]
[Termination "LiamClery2020 won by resignation"]

1. e4 {[%clk 0:04:59.1]} 1... e5 {[%clk 0:04:58.7]} 2. Nc3 {[%clk 0:04:58.3]}
2... Nf6 {[%clk 0:04:55.1]} 3. f4 {[%clk 0:04:56.8]} 3... d5 {[%clk 0:04:54.3]}
4. fxe5 {[%clk 0:04:55.1]} 4... Nxe4 {[%clk 0:04:53.9]} 5. Qf3 {[%clk
0:04:54.5]} 5... Nc6 {[%clk 0:04:35]} 6. Bb5 {[%clk 0:04:52.7]} 6... Nxc3 {[%clk
0:04:27.7]} 7. bxc3 {[%clk 0:04:51.5]} 7... Qh4+ {[%clk 0:04:21.7]} 8. g3 {[%clk
0:04:47.8]} 8... Qe4+ {[%clk 0:04:15.7]} 9. Qxe4 {[%clk 0:04:46]} 9... dxe4
{[%clk 0:04:15.1]} 10. d4 {[%clk 0:04:45.2]} 10... exd3 {[%clk 0:04:05.4]} 11.
cxd3 {[%clk 0:04:45.1]} 11... Bd7 {[%clk 0:03:58.8]} 12. Bf4 {[%clk 0:04:37.7]}
12... Nxe5 {[%clk 0:03:50.2]} 13. Bxd7+ {[%clk 0:04:32.2]} 13... Nxd7 {[%clk
0:03:49.4]} 14. Nf3 {[%clk 0:04:31.7]} 14... Be7 {[%clk 0:03:48.6]} 15. O-O
{[%clk 0:04:30.7]} 15... O-O {[%clk 0:03:47.5]} 16. Bxc7 {[%clk 0:04:30.1]}
16... Rac8 {[%clk 0:03:46.1]} 17. Bf4 {[%clk 0:04:29.4]} 17... Rxc3 {[%clk
0:03:44.6]} 18. Rfe1 {[%clk 0:04:28.5]} 18... Ba3 {[%clk 0:03:40.5]} 19. Rad1
{[%clk 0:04:22]} 19... Nf6 {[%clk 0:03:28.6]} 20. Nd4 {[%clk 0:04:20.2]} 20...
a6 {[%clk 0:03:25.7]} 21. Nf5 {[%clk 0:04:15.8]} 21... Nd5 {[%clk 0:03:22]} 22.
Be5 {[%clk 0:04:09.5]} 22... Rc2 {[%clk 0:03:12.3]} 23. Bxg7 {[%clk 0:04:07.2]}
23... Rfc8 {[%clk 0:03:05.3]} 24. Re5 {[%clk 0:04:02.5]} 24... Nc3 {[%clk
0:02:58.6]} 25. Rde1 {[%clk 0:03:58.4]} 25... Bc5+ {[%clk 0:02:57.1]} 26. Kh1
{[%clk 0:03:57.1]} 26... h6 {[%clk 0:02:48.3]} 27. Bxh6 {[%clk 0:03:50.8]} 27...
Kh7 {[%clk 0:02:46.5]} 28. d4 {[%clk 0:03:48.1]} 28... Bb4 {[%clk 0:02:40.6]}
29. Bf4 {[%clk 0:03:38.3]} 29... Nxa2 {[%clk 0:02:39]} 30. Rb1 {[%clk
0:03:34.9]} 30... a5 {[%clk 0:02:37]} 31. Ne3 {[%clk 0:03:30.3]} 31... Re2
{[%clk 0:02:35.6]} 32. Rh5+ {[%clk 0:03:29.3]} 32... Kg6 {[%clk 0:02:34]} 33.
Rg5+ {[%clk 0:03:27.8]} 33... Kh7 {[%clk 0:02:31.7]} 34. Rh5+ {[%clk 0:03:26.6]}
34... Kg8 {[%clk 0:02:30.9]} 35. Be5 {[%clk 0:03:22.3]} 35... f5 {[%clk
0:02:25.7]} 36. Rh8+ {[%clk 0:03:20.4]} 36... Kf7 {[%clk 0:02:24.6]} 37. Rxc8
{[%clk 0:03:19]} 37... Nc3 {[%clk 0:02:18.1]} 38. Rxc3 {[%clk 0:03:10.2]} 38...
Bxc3 {[%clk 0:02:16.4]} 39. Nxf5 {[%clk 0:03:09.3]} 39... a4 {[%clk 0:02:08.2]}
40. Rxb7+ {[%clk 0:03:06.5]} 40... Ke6 {[%clk 0:02:07.5]} 41. Ng7+ {[%clk
0:03:04]} 41... Kd5 {[%clk 0:02:06.8]} 42. Ra7 {[%clk 0:03:00.3]} 42... Ra2
{[%clk 0:02:02.3]} 43. Nf5 {[%clk 0:02:57.1]} 43... a3 {[%clk 0:02:00.6]} 44.
Ne3+ {[%clk 0:02:54.9]} 44... Ke4 {[%clk 0:01:56.9]} 45. Nc4 {[%clk 0:02:50.9]}
45... Kf3 {[%clk 0:01:54.6]} 46. Rxa3 {[%clk 0:02:48.3]} 46... Re2 {[%clk
0:01:42.6]} 47. Rxc3+ {[%clk 0:02:44.8]} 47... Kf2 {[%clk 0:01:38.7]} 48. Rc1
{[%clk 0:02:36.8]} 1-0

[Event "Live Chess"]
[Site "Chess.com"]
[Date "2023.05.21"]
[Round "-"]
[White "Conradical12"]
[Black "OleksiyJr1"]
[Result "1-0"]
[WhiteElo "1583"]
[BlackElo "1008"]
[TimeControl "300"]
[EndTime "6:11:19 PDT"]
[Termination "Conradical12 won by checkmate"]

1. e4 {[%clk 0:04:57.5]} 1... c5 {[%clk 0:04:58.6]} 2. Bc4 {[%clk 0:04:53.5]}
2... Nc6 {[%clk 0:04:50.9]} 3. Nf3 {[%clk 0:04:52.4]} 3... d6 {[%clk 0:04:49.2]}
4. O-O {[%clk 0:04:50]} 4... e5 {[%clk 0:04:48.5]} 5. d3 {[%clk 0:04:47.5]} 5...
Nf6 {[%clk 0:04:48.1]} 6. c3 {[%clk 0:04:42.6]} 6... Bg4 {[%clk 0:04:43.8]} 7.
Qb3 {[%clk 0:04:32.3]} 7... b6 {[%clk 0:04:41.1]} 8. h3 {[%clk 0:04:28.3]} 8...
Bh5 {[%clk 0:04:39.4]} 9. g4 {[%clk 0:04:24]} 9... Bg6 {[%clk 0:04:38.6]} 10.
Ng5 {[%clk 0:04:22.5]} 10... h6 {[%clk 0:04:36.3]} 11. Nxf7 {[%clk 0:04:19.3]}
11... Bxf7 {[%clk 0:04:35.7]} 12. Bxf7+ {[%clk 0:04:17.3]} 12... Kd7 {[%clk
0:04:33.1]} 13. f4 {[%clk 0:04:09.8]} 13... exf4 {[%clk 0:04:32]} 14. Bxf4
{[%clk 0:04:07.4]} 14... Be7 {[%clk 0:04:30.6]} 15. e5 {[%clk 0:04:03.4]} 15...
Nxe5 {[%clk 0:04:26.1]} 16. Bxe5 {[%clk 0:04:01.1]} 16... dxe5 {[%clk 0:04:26]}
17. Nd2 {[%clk 0:03:49.4]} 17... Kc6 {[%clk 0:04:19.5]} 18. Ne4 {[%clk
0:03:44.2]} 18... Qxd3 {[%clk 0:04:13]} 19. Nxf6 {[%clk 0:03:40.8]} 19... Bxf6
{[%clk 0:04:12.9]} 20. Qa4+ {[%clk 0:03:26.3]} 20... b5 {[%clk 0:04:10.7]} 21.
Qa6+ {[%clk 0:03:24.6]} 21... Kc7 {[%clk 0:04:06.7]} 22. Kg2 {[%clk 0:03:03.3]}
22... Qe4+ {[%clk 0:04:01.9]} 23. Rf3 {[%clk 0:03:00.8]} 23... Qe2+ {[%clk
0:04:01]} 24. Kg3 {[%clk 0:02:54.3]} 24... Bh4+ {[%clk 0:03:59.5]} 25. Kxh4
{[%clk 0:02:52.3]} 25... Qxf3 {[%clk 0:03:58]} 26. Qe6 {[%clk 0:02:42.7]} 26...
Qf2+ {[%clk 0:03:49]} 27. Kh5 {[%clk 0:02:39.6]} 27... Rhf8 {[%clk 0:03:36]} 28.
Qe7+ {[%clk 0:02:33.7]} 28... Kb6 {[%clk 0:03:28.8]} 29. Qd6+ {[%clk 0:02:29.5]}
29... Ka5 {[%clk 0:03:27]} 30. b4+ {[%clk 0:02:24.9]} 30... Ka4 {[%clk
0:03:24.3]} 31. Qa6# {[%clk 0:02:22]} 1-0

[Event "Live Chess"]
[Site "Chess.com"]
[Date "2023.05.21"]
[Round "-"]
[White "Missedidea"]
[Black "LordBenin"]
[Result "1-0"]
[WhiteElo "1790"]
[BlackElo "1376"]
[TimeControl "300"]
[EndTime "6:11:20 PDT"]
[Termination "Missedidea won by resignation"]

1. d4 {[%clk 0:04:59.1]} 1... Nf6 {[%clk 0:04:58.6]} 2. c4 {[%clk 0:04:57.5]}
2... g6 {[%clk 0:04:57.4]} 3. Nc3 {[%clk 0:04:55.8]} 3... d5 {[%clk 0:04:56]} 4.
cxd5 {[%clk 0:04:54.2]} 4... Nxd5 {[%clk 0:04:55]} 5. e4 {[%clk 0:04:53.5]} 5...
Nxc3 {[%clk 0:04:51.9]} 6. bxc3 {[%clk 0:04:52.6]} 6... Bg7 {[%clk 0:04:50.9]}
7. Bc4 {[%clk 0:04:51.6]} 7... c5 {[%clk 0:04:49]} 8. Ne2 {[%clk 0:04:50.3]}
8... Nc6 {[%clk 0:04:46.7]} 9. Be3 {[%clk 0:04:49.2]} 9... O-O {[%clk
0:04:44.1]} 10. O-O {[%clk 0:04:48]} 10... e6 {[%clk 0:04:33]} 11. f4 {[%clk
0:04:44.2]} 11... a6 {[%clk 0:04:29.7]} 12. Qd2 {[%clk 0:04:32]} 12... b5 {[%clk
0:04:02.4]} 13. Bd3 {[%clk 0:04:20.3]} 13... c4 {[%clk 0:03:53.1]} 14. Bc2
{[%clk 0:04:18.3]} 14... Bb7 {[%clk 0:03:51.4]} 15. Rad1 {[%clk 0:04:12.5]}
15... Qe7 {[%clk 0:03:35.9]} 16. Ng3 {[%clk 0:03:59.7]} 16... Rfd8 {[%clk
0:03:22.6]} 17. f5 {[%clk 0:03:58.1]} 17... exf5 {[%clk 0:03:15.5]} 18. exf5
{[%clk 0:03:53.3]} 18... Qd6 {[%clk 0:02:43.5]} 19. Ne4 {[%clk 0:03:38.7]} 19...
Qc7 {[%clk 0:02:33.8]} 20. f6 {[%clk 0:03:36.5]} 20... Bf8 {[%clk 0:02:26.1]}
21. Bh6 {[%clk 0:03:32]} 21... Na7 {[%clk 0:01:42.2]} 22. Bxf8 {[%clk 0:03:27]}
22... Kxf8 {[%clk 0:01:40.9]} 23. Qh6+ {[%clk 0:03:24.4]} 23... Ke8 {[%clk
0:01:39.5]} 24. Rde1 {[%clk 0:03:18.4]} 24... Kd7 {[%clk 0:01:33.2]} 25. Qg7
{[%clk 0:03:14.1]} 25... Rf8 {[%clk 0:01:26.2]} 26. Nc5+ {[%clk 0:03:10.2]}
26... Kc6 {[%clk 0:01:20.1]} 27. Re7 {[%clk 0:03:00.9]} 27... Qb6 {[%clk
0:01:03.6]} 28. Rxb7 {[%clk 0:02:58.6]} 28... Qxb7 {[%clk 0:00:59.6]} 29. Nxb7
{[%clk 0:02:55.5]} 29... Kxb7 {[%clk 0:00:58.5]} 30. Be4+ {[%clk 0:02:53.5]} 1-0

[Event "Live Chess"]
[Site "Chess.com"]
[Date "2023.05.21"]
[Round "-"]
[White "chessfiction"]
[Black "mliszewski"]
[Result "1-0"]
[WhiteElo "2315"]
[BlackElo "1797"]
[TimeControl "300"]
[EndTime "6:11:20 PDT"]
[Termination "chessfiction won by checkmate"]

1. e4 {[%clk 0:04:57.2]} 1... c6 {[%clk 0:04:59.1]} 2. d4 {[%clk 0:04:56.4]}
2... d5 {[%clk 0:04:59]} 3. Nc3 {[%clk 0:04:55.6]} 3... dxe4 {[%clk 0:04:58.2]}
4. Nxe4 {[%clk 0:04:55.5]} 4... Nf6 {[%clk 0:04:57.3]} 5. Ng3 {[%clk 0:04:51.5]}
5... h5 {[%clk 0:04:56.3]} 6. h4 {[%clk 0:04:50]} 6... Bg4 {[%clk 0:04:48.8]} 7.
Nf3 {[%clk 0:04:48.9]} 7... g6 {[%clk 0:04:41.9]} 8. Bc4 {[%clk 0:04:47.2]} 8...
Bg7 {[%clk 0:04:40.5]} 9. Bg5 {[%clk 0:04:44.6]} 9... O-O {[%clk 0:04:38.9]} 10.
c3 {[%clk 0:04:43.3]} 10... Nbd7 {[%clk 0:04:25]} 11. Qc2 {[%clk 0:04:31.4]}
11... Bxf3 {[%clk 0:04:20.8]} 12. gxf3 {[%clk 0:04:29.3]} 12... a5 {[%clk
0:04:19.4]} 13. O-O-O {[%clk 0:04:27.4]} 13... b5 {[%clk 0:04:17.4]} 14. Bd3
{[%clk 0:04:26.5]} 14... b4 {[%clk 0:04:14]} 15. Rdg1 {[%clk 0:04:23.9]} 15...
bxc3 {[%clk 0:04:11.2]} 16. bxc3 {[%clk 0:04:19.2]} 16... Kh7 {[%clk 0:04:00.3]}
17. Bxf6 {[%clk 0:04:02]} 17... Nxf6 {[%clk 0:03:59]} 18. Nxh5 {[%clk
0:03:59.1]} 18... Nxh5 {[%clk 0:03:56.6]} 19. Bxg6+ {[%clk 0:03:54.8]} 19...
fxg6 {[%clk 0:03:54.1]} 20. Qxg6+ {[%clk 0:03:53.2]} 20... Kg8 {[%clk
0:03:49.5]} 21. Qxh5 {[%clk 0:03:50.1]} 21... Rf7 {[%clk 0:03:48]} 22. Rg5
{[%clk 0:03:40.2]} 22... Qd6 {[%clk 0:03:23.6]} 23. Rc5 {[%clk 0:03:08.3]} 23...
Qf4+ {[%clk 0:03:18]} 24. Kc2 {[%clk 0:03:05.7]} 24... Qxf3 {[%clk 0:03:12.9]}
25. Qxf3 {[%clk 0:03:01]} 25... Rxf3 {[%clk 0:03:12]} 26. Rxc6 {[%clk
0:02:58.8]} 26... Rxf2+ {[%clk 0:03:09.6]} 27. Kd3 {[%clk 0:02:58.1]} 27... Rxa2
{[%clk 0:03:06.9]} 28. Rg1 {[%clk 0:02:55.4]} 28... Rf8 {[%clk 0:03:04.8]} 29.
Rcg6 {[%clk 0:02:51.7]} 29... Rf7 {[%clk 0:03:03.1]} 30. h5 {[%clk 0:02:50.7]}
30... Kf8 {[%clk 0:03:01.6]} 31. h6 {[%clk 0:02:49.3]} 31... Rf3+ {[%clk
0:02:42.5]} 32. Ke4 {[%clk 0:02:47.4]} 32... Rxc3 {[%clk 0:02:37.9]} 33. hxg7+
{[%clk 0:02:43.9]} 33... Kg8 {[%clk 0:02:37.3]} 34. Rh1 {[%clk 0:02:30.4]} 34...
Re2+ {[%clk 0:01:59.1]} 35. Kd5 {[%clk 0:02:29.2]} 35... e6+ {[%clk 0:01:58.3]}
36. Kd6 {[%clk 0:02:28.2]} 36... Rec2 {[%clk 0:01:50.3]} 37. Rh8+ {[%clk
0:02:25.8]} 37... Kf7 {[%clk 0:01:50]} 38. g8=Q# {[%clk 0:02:25.4]} 1-0

[Event "Live Chess"]
[Site "Chess.com"]
[Date "2023.05.21"]
[Round "-"]
[White "AlanPaling"]
[Black "Olisingapore"]
[Result "1-0"]
[WhiteElo "1385"]
[BlackElo "1770"]
[TimeControl "300"]
[EndTime "6:11:35 PDT"]
[Termination "AlanPaling won on time"]

1. c4 {[%clk 0:04:55.5]} 1... Nf6 {[%clk 0:04:58.5]} 2. Nc3 {[%clk 0:04:54.1]}
2... e5 {[%clk 0:04:57.8]} 3. g3 {[%clk 0:04:52.7]} 3... Bb4 {[%clk 0:04:57.3]}
4. Bg2 {[%clk 0:04:51.2]} 4... c6 {[%clk 0:04:56.1]} 5. e4 {[%clk 0:04:49.6]}
5... O-O {[%clk 0:04:53.6]} 6. Nge2 {[%clk 0:04:48.8]} 6... Re8 {[%clk
0:04:35.5]} 7. O-O {[%clk 0:04:45.9]} 7... d6 {[%clk 0:04:20.4]} 8. a3 {[%clk
0:04:44.4]} 8... Bxc3 {[%clk 0:04:15.6]} 9. Nxc3 {[%clk 0:04:42.7]} 9... Bg4
{[%clk 0:04:13]} 10. Ne2 {[%clk 0:04:36.1]} 10... d5 {[%clk 0:04:08.1]} 11. h3
{[%clk 0:04:29.9]} 11... Bxe2 {[%clk 0:04:00.3]} 12. Qxe2 {[%clk 0:04:28.7]}
12... dxe4 {[%clk 0:03:51.1]} 13. Bxe4 {[%clk 0:04:21]} 13... Qd7 {[%clk
0:03:21.2]} 14. Kg2 {[%clk 0:04:12.8]} 14... Nxe4 {[%clk 0:03:19.6]} 15. Qxe4
{[%clk 0:04:11]} 15... Na6 {[%clk 0:03:16.5]} 16. b4 {[%clk 0:04:04.9]} 16...
Rad8 {[%clk 0:03:07]} 17. c5 {[%clk 0:03:58.4]} 17... Nc7 {[%clk 0:03:04.7]} 18.
Ra2 {[%clk 0:03:48.9]} 18... Ne6 {[%clk 0:02:54.5]} 19. h4 {[%clk 0:03:44.9]}
19... Nd4 {[%clk 0:02:33.8]} 20. Rb2 {[%clk 0:03:43.3]} 20... f5 {[%clk
0:02:31.4]} 21. Qd3 {[%clk 0:03:34.2]} 21... Nb5 {[%clk 0:02:23.8]} 22. Qc4+
{[%clk 0:03:32.7]} 22... Qd5+ {[%clk 0:02:16]} 23. Qxd5+ {[%clk 0:03:30]} 23...
Rxd5 {[%clk 0:02:15.9]} 24. a4 {[%clk 0:03:27.8]} 24... Nd4 {[%clk 0:02:14.1]}
25. f3 {[%clk 0:03:22.4]} 25... Red8 {[%clk 0:02:05]} 26. Re1 {[%clk 0:03:18.8]}
26... Ne6 {[%clk 0:01:57.9]} 27. Re2 {[%clk 0:03:08.5]} 27... Kf7 {[%clk
0:01:51.7]} 28. Re3 {[%clk 0:03:06.1]} 28... f4 {[%clk 0:01:40.5]} 29. gxf4
{[%clk 0:02:52.6]} 29... exf4 {[%clk 0:01:40.4]} 30. Re4 {[%clk 0:02:51]} 30...
g5 {[%clk 0:01:30.5]} 31. hxg5 {[%clk 0:02:47.6]} 31... Rxg5+ {[%clk 0:01:30.4]}
32. Kf2 {[%clk 0:02:42.6]} 32... Rdg8 {[%clk 0:01:26.7]} 33. Ke2 {[%clk
0:02:39.2]} 33... Rg1 {[%clk 0:01:23.5]} 34. Rc2 {[%clk 0:02:34]} 34... R8g2+
{[%clk 0:01:18.1]} 35. Kd3 {[%clk 0:02:31.7]} 35... h5 {[%clk 0:01:11]} 36. Kc3
{[%clk 0:02:26.8]} 36... h4 {[%clk 0:01:09.6]} 37. d4 {[%clk 0:02:21.7]} 37...
Rxc2+ {[%clk 0:01:07.1]} 38. Kxc2 {[%clk 0:02:20]} 38... h3 {[%clk 0:01:05.8]}
39. Bxf4 {[%clk 0:02:12]} 39... Rg2+ {[%clk 0:00:46.6]} 40. Kd3 {[%clk
0:02:04.4]} 40... h2 {[%clk 0:00:46]} 41. Bxh2 {[%clk 0:02:00.4]} 41... Rxh2
{[%clk 0:00:45.3]} 42. Re5 {[%clk 0:01:57.3]} 42... Ra2 {[%clk 0:00:41.1]} 43.
d5 {[%clk 0:01:54.1]} 43... Ng7 {[%clk 0:00:35.7]} 44. d6 {[%clk 0:01:50.9]}
44... Rxa4 {[%clk 0:00:17.1]} 45. d7 {[%clk 0:01:45.9]} 45... Ne6 {[%clk
0:00:14.3]} 46. Rxe6 {[%clk 0:01:44.6]} 46... Kxe6 {[%clk 0:00:13]} 47. d8=Q
{[%clk 0:01:42.6]} 47... Ra3+ {[%clk 0:00:12.9]} 48. Kc4 {[%clk 0:01:39.9]}
48... Rxf3 {[%clk 0:00:10.2]} 49. Qc8+ {[%clk 0:01:38.3]} 49... Ke5 {[%clk
0:00:09.1]} 50. Qxb7 {[%clk 0:01:36]} 50... Rf4+ {[%clk 0:00:09]} 51. Kb3 {[%clk
0:01:34.7]} 51... Rf3+ {[%clk 0:00:08.3]} 52. Ka4 {[%clk 0:01:33.7]} 52... Kd5
{[%clk 0:00:07.7]} 53. Qd7+ {[%clk 0:01:31.1]} 53... Kc4 {[%clk 0:00:07.1]} 54.
Qxc6 {[%clk 0:01:28.2]} 54... Rf1 {[%clk 0:00:05.9]} 55. Qe6+ {[%clk 0:01:25.1]}
55... Kc3 {[%clk 0:00:04.2]} 56. Qe3+ {[%clk 0:01:23]} 56... Kc2 {[%clk
0:00:02]} 57. Qe2+ {[%clk 0:01:22]} 57... Kc3 {[%clk 0:00:01]} 58. Qxf1 {[%clk
0:01:20.7]} 58... Kd4 {[%clk 0:00:00.4]} 59. Qd1+ {[%clk 0:01:19.5]} 1-0

[Event "Live Chess"]
[Site "Chess.com"]
[Date "2023.05.21"]
[Round "-"]
[White "JanMur7"]
[Black "Anirudh_23"]
[Result "1-0"]
[WhiteElo "1969"]
[BlackElo "1884"]
[TimeControl "300"]
[EndTime "6:11:37 PDT"]
[Termination "JanMur7 won by resignation"]

1. e4 {[%clk 0:04:58.2]} 1... e6 {[%clk 0:04:58.1]} 2. d4 {[%clk 0:04:56.4]}
2... d5 {[%clk 0:04:57.5]} 3. exd5 {[%clk 0:04:56.3]} 3... exd5 {[%clk
0:04:57.4]} 4. Bd3 {[%clk 0:04:56]} 4... Bd6 {[%clk 0:04:56.8]} 5. Ne2 {[%clk
0:04:55.3]} 5... Ne7 {[%clk 0:04:56.4]} 6. O-O {[%clk 0:04:54.6]} 6... O-O
{[%clk 0:04:55.9]} 7. Bf4 {[%clk 0:04:53.6]} 7... Bf5 {[%clk 0:04:55.5]} 8. c3
{[%clk 0:04:51.5]} 8... Qd7 {[%clk 0:04:52.4]} 9. Qc2 {[%clk 0:04:46.3]} 9...
Na6 {[%clk 0:04:47.9]} 10. Bxd6 {[%clk 0:04:43.7]} 10... Bxd3 {[%clk 0:04:39.7]}
11. Qxd3 {[%clk 0:04:41.3]} 11... Qxd6 {[%clk 0:04:39.6]} 12. Nd2 {[%clk
0:04:39.8]} 12... c6 {[%clk 0:04:22.8]} 13. Nf3 {[%clk 0:04:38.8]} 13... Ng6
{[%clk 0:04:20.2]} 14. Ng3 {[%clk 0:04:34.2]} 14... Nc7 {[%clk 0:04:16.1]} 15.
Rfe1 {[%clk 0:04:28.1]} 15... Rfe8 {[%clk 0:04:12]} 16. Rxe8+ {[%clk 0:04:20.4]}
16... Rxe8 {[%clk 0:04:11.9]} 17. Re1 {[%clk 0:04:19]} 17... Nf4 {[%clk
0:04:02.9]} 18. Rxe8+ {[%clk 0:04:14]} 18... Nxe8 {[%clk 0:04:02.8]} 19. Qe3
{[%clk 0:04:11.7]} 19... Nf6 {[%clk 0:03:55.5]} 20. Nf5 {[%clk 0:04:02.3]} 20...
Qc7 {[%clk 0:03:44.6]} 21. Ne5 {[%clk 0:03:53.7]} 21... Ne6 {[%clk 0:03:36.3]}
22. h3 {[%clk 0:03:43.3]} 22... g6 {[%clk 0:03:25.1]} 23. Nh6+ {[%clk
0:03:38.5]} 23... Kg7 {[%clk 0:03:19.9]} 24. Nhxf7 {[%clk 0:03:36.6]} 24... Ne4
{[%clk 0:03:13.6]} 25. Qh6+ {[%clk 0:03:27.3]} 25... Kg8 {[%clk 0:03:05.8]} 26.
h4 {[%clk 0:03:08.6]} 26... c5 {[%clk 0:03:04.2]} 1-0

[Event "Live Chess"]
[Site "Chess.com"]
[Date "2023.05.21"]
[Round "-"]
[White "diana21strabt"]
[Black "MarkLim1"]
[Result "1-0"]
[WhiteElo "1755"]
[BlackElo "1698"]
[TimeControl "300"]
[EndTime "6:11:45 PDT"]
[Termination "diana21strabt won by resignation"]

1. e4 {[%clk 0:04:57.8]} 1... c6 {[%clk 0:04:58.8]} 2. Nf3 {[%clk 0:04:56.7]}
2... d5 {[%clk 0:04:58]} 3. exd5 {[%clk 0:04:55.8]} 3... cxd5 {[%clk 0:04:57.3]}
4. Nc3 {[%clk 0:04:55]} 4... Bg4 {[%clk 0:04:56.2]} 5. d4 {[%clk 0:04:53.8]}
5... Nc6 {[%clk 0:04:55.4]} 6. Bb5 {[%clk 0:04:52.6]} 6... Nf6 {[%clk
0:04:54.6]} 7. h3 {[%clk 0:04:51.3]} 7... Bh5 {[%clk 0:04:53.1]} 8. g4 {[%clk
0:04:49.8]} 8... Bg6 {[%clk 0:04:52]} 9. Ne5 {[%clk 0:04:49.1]} 9... Qb6 {[%clk
0:04:47.2]} 10. Bxc6+ {[%clk 0:04:46.7]} 10... bxc6 {[%clk 0:04:46.2]} 11. Nxg6
{[%clk 0:04:44]} 11... hxg6 {[%clk 0:04:45.2]} 12. Na4 {[%clk 0:04:41.3]} 12...
Qa5+ {[%clk 0:04:43.7]} 13. c3 {[%clk 0:04:39.4]} 13... e6 {[%clk 0:04:42.9]}
14. Bd2 {[%clk 0:04:37.3]} 14... Bd6 {[%clk 0:04:41]} 15. Qb3 {[%clk 0:04:36.2]}
15... Qc7 {[%clk 0:04:39.3]} 16. O-O-O {[%clk 0:04:32.9]} 16... Rb8 {[%clk
0:04:36.2]} 17. Qc2 {[%clk 0:04:31.4]} 17... Ne4 {[%clk 0:04:30.7]} 18. Be3
{[%clk 0:04:26.4]} 18... c5 {[%clk 0:04:21.9]} 19. Nxc5 {[%clk 0:04:18.2]} 19...
Nxc5 {[%clk 0:04:20.5]} 20. dxc5 {[%clk 0:04:17]} 20... Bxc5 {[%clk 0:04:19.8]}
21. Bxc5 {[%clk 0:04:15.3]} 21... Qxc5 {[%clk 0:04:18.8]} 22. f4 {[%clk
0:04:13.1]} 22... Qe3+ {[%clk 0:04:13.7]} 23. Qd2 {[%clk 0:04:10.9]} 23... Qxd2+
{[%clk 0:04:11]} 24. Rxd2 {[%clk 0:04:09.6]} 24... Rb6 {[%clk 0:04:06.5]} 25. f5
{[%clk 0:04:03.9]} 25... gxf5 {[%clk 0:04:05.2]} 26. gxf5 {[%clk 0:04:02]} 26...
Ke7 {[%clk 0:04:03.9]} 27. fxe6 {[%clk 0:04:00.4]} 27... fxe6 {[%clk 0:04:02.6]}
28. Rg2 {[%clk 0:03:58.4]} 28... Rh7 {[%clk 0:04:00.4]} 29. Rhg1 {[%clk
0:03:55.9]} 29... Rxh3 {[%clk 0:03:57.3]} 30. Rxg7+ {[%clk 0:03:54.7]} 30... Kd6
{[%clk 0:03:56.8]} 31. Rxa7 {[%clk 0:03:52.7]} 31... Ra6 {[%clk 0:03:55.9]} 32.
Rxa6+ {[%clk 0:03:50.9]} 1-0

[Event "Live Chess"]
[Site "Chess.com"]
[Date "2023.05.21"]
[Round "-"]
[White "MartynColebrook"]
[Black "KeithArkell"]
[Result "0-1"]
[WhiteElo "957"]
[BlackElo "2481"]
[TimeControl "300"]
[EndTime "6:11:50 PDT"]
[Termination "KeithArkell won by resignation"]

1. e4 {[%clk 0:04:57.8]} 1... c6 {[%clk 0:04:59.3]} 2. Nf3 {[%clk 0:04:53.9]}
2... d5 {[%clk 0:04:59.2]} 3. exd5 {[%clk 0:04:51.6]} 3... cxd5 {[%clk 0:04:58]}
4. d4 {[%clk 0:04:49.8]} 4... Nf6 {[%clk 0:04:57.2]} 5. c4 {[%clk 0:04:48.2]}
5... g6 {[%clk 0:04:55.5]} 6. Nc3 {[%clk 0:04:45.6]} 6... Bg7 {[%clk 0:04:54.7]}
7. Bf4 {[%clk 0:04:42.7]} 7... O-O {[%clk 0:04:53]} 8. cxd5 {[%clk 0:04:40.6]}
8... Nxd5 {[%clk 0:04:51.8]} 9. Bg3 {[%clk 0:04:38]} 9... Nc6 {[%clk 0:04:50.4]}
10. Bc4 {[%clk 0:04:33.7]} 10... Nxc3 {[%clk 0:04:48.4]} 11. bxc3 {[%clk
0:04:32.1]} 11... Bg4 {[%clk 0:04:47.3]} 12. O-O {[%clk 0:04:26.3]} 12... Rc8
{[%clk 0:04:45.9]} 13. Qd3 {[%clk 0:04:20.2]} 13... Bxf3 {[%clk 0:04:42.8]} 14.
gxf3 {[%clk 0:04:14.6]} 14... e6 {[%clk 0:04:37.1]} 15. Rab1 {[%clk 0:04:10]}
15... Qd7 {[%clk 0:04:33.3]} 16. Rfd1 {[%clk 0:04:05.5]} 16... Rfd8 {[%clk
0:04:28]} 17. d5 {[%clk 0:03:58.3]} 17... exd5 {[%clk 0:04:18.6]} 18. Bxd5
{[%clk 0:03:48.4]} 18... b6 {[%clk 0:04:07.2]} 19. Qe4 {[%clk 0:03:40.2]} 19...
Qe8 {[%clk 0:04:00.1]} 20. Bxf7+ {[%clk 0:03:26.1]} 20... Qxf7 {[%clk
0:03:57.3]} 21. Rxd8+ {[%clk 0:03:21.8]} 21... Nxd8 {[%clk 0:03:56.2]} 22. Rd1
{[%clk 0:03:09.9]} 22... Ne6 {[%clk 0:03:54.8]} 23. Qd5 {[%clk 0:03:01]} 23...
Re8 {[%clk 0:03:52.9]} 24. c4 {[%clk 0:02:54.5]} 24... Nc5 {[%clk 0:03:45]} 25.
Qxf7+ {[%clk 0:02:48.1]} 25... Kxf7 {[%clk 0:03:43.5]} 26. Bd6 {[%clk 0:02:40]}
26... Rd8 {[%clk 0:03:39.9]} 27. Rd5 {[%clk 0:02:34.6]} 27... Nb7 {[%clk
0:03:31.4]} 28. Bg3 {[%clk 0:02:20.7]} 28... Rxd5 {[%clk 0:03:29.9]} 29. cxd5
{[%clk 0:02:18.7]} 29... Bf8 {[%clk 0:03:29]} 30. a4 {[%clk 0:02:13.2]} 30...
Bd6 {[%clk 0:03:27.5]} 31. Kg2 {[%clk 0:01:52.8]} 31... Bxg3 {[%clk 0:03:24.5]}
32. fxg3 {[%clk 0:01:51.2]} 32... Nc5 {[%clk 0:03:23.6]} 0-1